[Event "2nd China Preliminary Asian Games 2022"]
[Site "HangZhou"]
[Date "2022.04.22"]
[Round "8.1"]
[White "Ding, Liren"]
[Black "Wei, Yi"]
[Result "1/2-1/2"]
[ECO "D41"]
[WhiteElo "2799"]
[BlackElo "2729"]
[Annotator "TA"]
[PlyCount "91"]
[EventDate "2022.04.13"]
[EventType "tourn"]
[EventCountry "CHN"]
[SourceTitle "playchess.com"]
[Source "ChessBase"]
[SourceQuality "1"]
[TimeControl "40/5400+30:1800+30"]

{[%evp 11,91,27,33,34,24,-18,25,31,23,29,25,22,23,19,22,22,26,30,36,27,26,35,32,37,26,29,42,35,45,39,42,35,39,3,5,8,8,8,64,63,62,63,62,60,60,60,60,60,96,96,113,72,72,43,65,51,95,43,95,95,95,65,85,58,58,58,58,58,58,58,58,58,58,58,58,58,58,58,58,58,58,0]} 1. d4 {[%emt 0:00:25]} Nf6 {[%emt 0:00:07]} 2. c4 {[%emt 0:00:24]} e6 {[%emt 0:00:07]} 3. Nf3 {[%emt 0:00:02]} d5 {[%emt 0:00:09]} 4. Nc3 {[%emt 0:00:04]} c5 {[%emt 0:00:22]} 5. cxd5 {[%emt 0:00:05]} cxd4 {[%emt 0:00:14]} 6. Qxd4 {[%emt 0:00:04]} exd5 {[%emt 0:00:07]} 7. e4 {[%emt 0:05:01] D41: Queen's Gambit Declined: Semi-Tarrasch with 5 cxd5.} dxe4 {[%emt 0:00:14]} 8. Qxd8+ {[%emt 0:00:04]} Kxd8 {[%emt 0:00:05]} 9. Ng5 {[%emt 0:00:03][%csl LRe4,LRf7] White has an edge.} Be6 {[%emt 0:00:10]} 10. Nxe6+ {[%emt 0:00:12]} fxe6 {[%emt 0:00:05]} 11. Bg5 {[%emt 0:00:02]} Nc6 {[%emt 0:02:08] seems to push 11...Ke8 aside.} 12. Bc4 {[%emt 0:00:05]} Ke7 {[%emt 0:00:32]} 13. Nxe4 {[%emt 0:00:04]} Kf7 {[%emt 0:14:35]} 14. Bxf6 {[%emt 0:00:16]} gxf6 {[%emt 0:00:05]} 15. O-O-O {[%emt 0:00:04]} Rd8 {[%emt 0:00:38] Prevents Rd7+.} ({Don't do} 15... Ne5 16. Bb3 $16) 16. Rxd8 {[%emt 0:00:16]} Nxd8 {[%emt 0:00:04]} 17. Rd1 {[%emt 0:00:05]} Be7 {[%emt 0:01:09]} 18. Rd7 {[%emt 0:00:05] [#] Strongly threatening Nd6+.} f5 {[%emt 0:00:08]} 19. Nd6+ {[%emt 0:00:11]} Kf6 {[%emt 0:00:06]} 20. Nxb7 {[%emt 0:00:05]} Nxb7 {[%emt 0:00:20]} 21. Rxb7 $14 {[%emt 0:00:04][%mdl 4096] Endgame KRB-KRB} Bc5 {[%emt 0:00:09]} 22. Rc7 {[%emt 0:00:03]} Bxf2 {[%emt 0:00:06]} 23. Rc6 {[%emt 0:00:03]} Re8 {[%emt 0:04:19]} 24. b4 {[%emt 0:00:05][%cal Bb2b4,Bb4b5,Bb5c6][%mdl 32] [#]} Rb8 $146 {[%emt 0:03:37]} ({Black should try} 24... f4 $11) ({Predecessor:} 24... Bg1 25. h3 Rb8 26. Rxe6+ Kg5 27. b5 Rc8 28. Rc6 Rxc6 29. bxc6 Bb6 30. Kd2 Kf6 {½-½ (38) Keymer,V (2664)-Vidit,S (2727) Berlin 2022}) 25. Rxe6+ {[%emt 0:16:30]} Kg5 {[%emt 0:00:08]} 26. b5 $1 {[%emt 0:02:59]} Rc8 {[%emt 0:00:12]} 27. Rc6 {[%emt 0:00:03]} Rxc6 {[%emt 0:00:03]} 28. bxc6 {[%emt 0:00:03] [#] Hoping for c7. KB-KB} Bb6 {[%emt 0:00:04]} 29. Kc2 {[%emt 0:03:30]} Bc7 {[%emt 0:00:14]} 30. Kb3 {[%emt 0:00:46]} f4 {[%emt 0:00:15]} 31. Ba6 {[%emt 0:03:06]} Kf6 {[%emt 0:00:18]} 32. Kc4 {[%emt 0:01:55]} h6 {[%emt 0:00:09]} 33. Kd5 {[%emt 0:00:56]} Ke7 {[%emt 0:00:06]} 34. a4 {[%emt 0:00:07]} (34. h3 $16) 34... Kf6 {[%emt 0:00:07]} (34... f3 $1 $14 35. gxf3 Bxh2) 35. h3 $16 {[%emt 0:26:01]} Ke7 {[%emt 0:00:07]} 36. Kc5 {[%emt 0:00:06]} Kf6 {[%emt 0:00:05]} 37. a5 {[%emt 0:01:34]} Ke7 {[%emt 0:00:05] White is slightly better.} 38. Kb5 {[%emt 0:04:35]} Bd8 {[%emt 0:00:05]} 39. Bc8 {[%emt 0:02:40]} Kd6 {[%emt 0:00:07]} 40. Bd7 {[%emt 0:00:00]} Bc7 {[%emt 0:00:00]} 41. Ka6 {[%emt 0:00:16]} Bd8 $1 {[%emt 0:00:10]} 42. Kxa7 {[%emt 0:00:44] Black must now prevent Ka6.} Bxa5 {[%emt 0:00:04]} 43. Kb7 {[%emt 0:00:03]} Bd8 {[%emt 0:00:03]} 44. Bg4 {[%emt 0:00:05]} Ba5 {[%emt 0:00:06]} 45. Bf3 {[%emt 0:00:04]} Bd8 {[%emt 0:00:04]} 46. Bg4 {[%emt 0:00:07] Weighted Error Value: White=0.06 (flawless) /Black=0.08 (flawless)} (46. Be4 $14) 1/2-1/2

[Event "2nd China Preliminary Asian Games 2022"]
[Site "HangZhou"]
[Date "2022.04.22"]
[Round "8.2"]
[White "Ma, Qun"]
[Black "Xu, Xiangyu"]
[Result "1-0"]
[ECO "B90"]
[WhiteElo "2645"]
[BlackElo "2564"]
[Annotator "TA"]
[PlyCount "55"]
[EventDate "2022.04.13"]
[EventType "tourn"]
[EventCountry "CHN"]
[SourceTitle "playchess.com"]
[Source "ChessBase"]
[SourceQuality "1"]
[TimeControl "40/5400+30:1800+30"]

{[%evp 11,55,-4,0,-17,-31,-53,-16,0,-16,-20,-10,-26,59,53,60,0,37,36,24,33,22,0,0,0,558,556,592,595,584,587,590,570,562,555,542,523,572,540,524,494,815,816,1179,1160,993,783]} 1. e4 {[%emt 0:00:11]} c5 {[%emt 0:00:16]} 2. Nf3 {[%emt 0:00:23]} d6 {[%emt 0:00:06]} 3. d4 {[%emt 0:01:04]} cxd4 {[%emt 0:00:06]} 4. Nxd4 {[%emt 0:00:07]} Nf6 {[%emt 0:00:06]} 5. Nc3 {[%emt 0:00:04]} a6 {[%emt 0:01:24]} 6. Rg1 {[%emt 0:01:24]} b5 {[%emt 0:05:35][%cal Bb7b5,Bb5b4][%mdl 32]} 7. a4 {[%emt 0:00:15] B90: Sicilian Najdorf: Unusual White 6th moves, 6 Be3 Ng4 and 6 Be3 e5.} b4 {[%emt 0:00:06]} 8. Nd5 {[%emt 0:00:17]} e6 {[%emt 0:00:02]} 9. Nxf6+ {[%emt 0:00:16] The position is equal.} Qxf6 {[%emt 0:00:04]} 10. Be3 {[%emt 0:00:25]} Bb7 {[%emt 0:02:06]} 11. Qd2 {[%emt 0:00:07] [#]} Qd8 $146 {[%emt 0:22:50]} ({Better is} 11... Bxe4 $11 12. f3 (12. Qxb4 Nd7 $11) 12... Bd5) ({Predecessor:} 11... Bxe4 12. f3 Bb7 13. Qxb4 Qe7 14. Qb6 Qd7 15. O-O-O Qc8 16. Nb3 Nc6 17. Bd4 e5 {1-0 (76) Nepomniachtchi,I (2784)-Giri,A (2764) chess24.com INT 2020}) 12. Qxb4 $14 {[%emt 0:14:41]} Qc7 {[%emt 0:00:05]} 13. Nb3 {[%emt 0:00:42]} (13. f3 $14) 13... Nd7 {[%emt 0:13:15]} 14. Bd3 {[%emt 0:11:03]} d5 {[%emt 0:04:32]} 15. Qa5 $36 {[%emt 0:01:00][%mdl 2048] White is more active.} Qb8 {[%emt 0:13:05]} 16. Nc5 {[%emt 0:13:42]} Nxc5 {[%emt 0:22:36]} 17. Bxc5 {[%emt 0:00:42]} dxe4 $2 {[%emt 0:00:10][%mdl 8192] [#]} (17... Bxc5 $11 18. Qxc5 dxe4) 18. Bb5+ $1 $18 {[%emt 0:09:41][%mdl 512] White is clearly winning.} axb5 {[%emt 0:00:05]} 19. Qxb5+ {[%emt 0:00:05]} Kd8 {[%emt 0:00:06] [#]} 20. O-O-O+ $1 {[%emt 0:00:23]} ({Not} 20. Bb6+ Ke7 21. O-O-O Qe8 22. Qc5+ Kf6 $11) 20... Bd5 {[%emt 0:00:12] [#]} 21. Rxd5+ $1 {[%emt 0:00:33][%mdl 512]} exd5 {[%emt 0:00:10]} 22. Bb6+ {[%emt 0:00:07][%cal Bc5b6,Bb6e3,Be3d4][%mdl 96] Discovered Attack} Ke7 {[%emt 0:00:09] [#]} 23. Rd1 $1 {[%emt 0:00:49][%cal Bg1d1,Bd1d5,Bd5e5][%mdl 32]} Qf4+ {[%emt 0:14:13]} 24. Be3 {[%emt 0:08:48]} Qc7 {[%emt 0:00:14] Threatens to win with ...Qd7.} 25. Rxd5 {[%emt 0:02:07]} Ke6 {[%emt 0:00:55] Prevents Re5+.} (25... Rd8 $142 26. Re5+ Kf6 27. Rf5+ Ke7) 26. Qb3 {[%emt 0:03:19] Intending Rc5+ and mate.} ({Stronger than} 26. Rh5 Bd6 27. Qf5+ Ke7 28. Qxe4+ Kd7 $11) 26... Kf6 {[%emt 0:00:31]} 27. Bd4+ {[%emt 0:00:54]} Ke7 {[%emt 0:00:30]} 28. Re5+ {[%emt 0:01:23] Weighted Error Value: White=0.06 (flawless) /Black=0.69} ({Weaker is} 28. Rf5 Ke8 $18) 1-0

[Event "2nd China Preliminary Asian Games 2022"]
[Site "HangZhou"]
[Date "2022.04.22"]
[Round "8.3"]
[White "Bu, Xiangzhi"]
[Black "Zhang, Zhong"]
[Result "1-0"]
[ECO "D10"]
[WhiteElo "2700"]
[BlackElo "2640"]
[Annotator "TA"]
[PlyCount "83"]
[EventDate "2022.04.13"]
[EventType "tourn"]
[EventCountry "CHN"]
[SourceTitle "playchess.com"]
[Source "ChessBase"]
[SourceQuality "1"]
[TimeControl "40/5400+30:1800+30"]

{[%evp 16,83,0,0,0,10,8,7,13,0,13,0,1,-6,0,0,35,25,28,0,129,116,115,108,101,101,96,79,101,87,85,101,103,100,89,90,72,69,176,167,236,228,368,381,364,385,373,391,373,362,358,345,465,445,983,1165,1100,999,1034,1359,1412,1147,1433,1391,1366,1095,1222,1130,764,683]} 1. d4 {[%emt 0:01:20]} d5 {[%emt 0:00:43]} 2. c4 {[%emt 0:00:06]} dxc4 {[%emt 0:00:08]} 3. e4 {[%emt 0:00:09]} b5 {[%emt 0:00:09]} 4. a4 {[%emt 0:00:57]} c6 {[%emt 0:00:08]} 5. Nc3 {[%emt 0:00:20][%cal Bb1c3,Bc3a2,Ba2c1,Bc1b3,Bb3d4][%mdl 32]} b4 {[%emt 0:00:13]} 6. Na2 {[%emt 0:00:10]} Nf6 {[%emt 0:04:33]} 7. e5 {[%emt 0:00:06]} Nd5 {[%emt 0:00:06]} 8. Bxc4 {[%emt 0:00:03]} e6 {[%emt 0:00:20]} 9. Nf3 {[%emt 0:00:05]} Be7 {[%emt 1:28:40] Against Bg5. D10: Slav Defence: 3 cxd5 (without early Nf3) and 3 Nc3.} 10. Bd2 {[%emt 0:00:29]} a5 {[%emt 0:00:00]} 11. Nc1 {[%emt 0:00:09]} Nd7 {[%emt 0:00:00] The position is equal.} 12. Nb3 {[%emt 0:03:29]} Bb7 {[%emt 0:00:00]} 13. O-O {[%emt 0:00:09]} c5 {[%emt 0:00:00]} 14. dxc5 {[%emt 0:13:51]} O-O {[%emt 0:00:00]} 15. Bd3 {[%emt 0:01:28]} Rc8 {[%emt 0:00:00]} (15... Nxc5 $2 16. Nxc5 Bxc5 17. Bxh7+ $1 (17. Qc2 Rc8 $11) 17... Kxh7 18. Ng5+ (18. Qc2+ Kg8 $11) 18... Kg8 19. Qh5 Qxg5 20. Bxg5 $18) 16. Rc1 {[%emt 0:00:55]} Bc6 $1 {[%emt 0:00:00]} ({Resist} 16... Nxc5 17. Nxc5 Bxc5 18. Bxh7+ $1 Kxh7 19. Ng5+ Kg6 20. Rxc5 $1 {[%mdl 512]} Rxc5 21. Qb1+ f5 22. exf6+ Kxf6 23. Ne4+ Kf7 24. Nxc5 $16) (16... Bxc5 17. Bxh7+ Kxh7 18. Nxc5 Nxc5 19. Ng5+ Kg6 20. Rxc5 $1 {[%mdl 512]} Rxc5 21. Qb1+ f5 22. exf6+ Kxf6 23. Ne4+ Kf7 24. Nxc5 $16) 17. Nbd4 {[%emt 0:06:19] [#]} (17. Ba6 $5 {[%cal Ra6c8]} Bxa4 18. Bxc8 Qxc8 19. Nfd4 $14 (19. c6 Nc5 $14)) 17... g6 $146 {[%emt 0:00:00]} (17... Nxc5 $11 18. Nxc6 Rxc6) ({Predecessor:} 17... h6 18. Qe2 Nxc5 19. Rxc5 Bxc5 20. Nxc6 Rxc6 21. Qe4 g6 22. Bxh6 Be7 23. Nd4 Rb6 24. Bxf8 Qxf8 {1-0 (41) Ryjanova,J (2330)-Frayna,J (2287) Batumi 2018}) 18. Bh6 $16 {[%emt 0:27:08]} Re8 {[%emt 0:00:00]} 19. Nxc6 {[%emt 0:00:11] &Bianco is more active.} Rxc6 {[%emt 0:00:00]} 20. Bb5 {[%emt 0:00:03] This bishop pair is nice.} Rxc5 {[%emt 0:00:00]} 21. Nd4 $36 {[%emt 0:00:53][%cal Bf3d4,Bd4b3,Bb3a5][%mdl 2080] Black is under strong pressure.} Qc7 {[%emt 0:00:00] [#]} 22. Nb3 $1 {[%emt 0:07:20]} Rxc1 {[%emt 0:00:00]} 23. Qxc1 {[%emt 0:00:04]} Rc8 {[%emt 0:00:00]} 24. Qxc7 {[%emt 0:00:34]} Rxc7 {[%emt 0:00:00]} 25. Bxd7 {[%emt 0:00:09]} Rxd7 {[%emt 0:00:00]} 26. Nxa5 {[%emt 0:00:20] aiming for Rc1.} f5 {[%emt 0:00:00]} ({Black should try} 26... Bf8 $1 $14 27. Bxf8 Kxf8) 27. Nc6 $18 {[%emt 0:05:15]} Bc5 {[%emt 0:00:00]} (27... Bf8 {was called for.}) 28. Rc1 {[%emt 0:00:25]} Nc7 {[%emt 0:00:00]} (28... Bf8 $142) 29. Kf1 {[%emt 0:00:36]} Na6 {[%emt 0:01:27] [#]} 30. Nb8 $1 {[%emt 0:00:12][%mdl 512]} Nxb8 {[%emt 0:00:43]} 31. Rxc5 {[%emt 0:00:02][%mdl 4096] Endgame Rc8+ is the strong threat. KRB-KRN} Kf7 {[%emt 0:00:07]} 32. Ke2 {[%emt 0:08:16]} Rd5 {[%emt 0:02:20]} 33. Be3 {[%emt 0:03:19]} Rd7 {[%emt 0:03:03]} 34. f4 {[%emt 0:00:54] White is clearly winning.} Rb7 {[%emt 0:00:30]} (34... h6 $142 35. a5 Ke8) 35. Rb5 {[%emt 0:00:09]} Rxb5 {[%emt 0:00:09]} 36. axb5 {[%emt 0:00:01] KB-KN} Ke8 {[%emt 0:00:21]} 37. Kd3 {[%emt 0:02:55]} Kd8 {[%emt 0:00:21]} 38. Kc4 {[%emt 0:00:09]} Kc7 {[%emt 0:00:10]} 39. Kxb4 {[%emt 0:00:05]} Nd7 {[%emt 0:00:05]} 40. Ka5 {[%emt 0:00:00]} Kb7 {[%emt 0:00:00]} 41. b6 {[%emt 0:00:32]} g5 {[%emt 0:01:49]} 42. g3 {[%emt 0:51:53] Weighted Error Value: White=0.02 (flawless) /Black=0.34} 1-0

[Event "2nd China Preliminary Asian Games 2022"]
[Site "HangZhou"]
[Date "2022.04.23"]
[Round "9.1"]
[White "Zhang, Zhong"]
[Black "Ding, Liren"]
[Result "0-1"]
[ECO "B52"]
[WhiteElo "2640"]
[BlackElo "2799"]
[Annotator "TA"]
[PlyCount "128"]
[EventDate "2022.04.13"]
[EventType "tourn"]
[EventCountry "CHN"]
[SourceTitle "playchess.com"]
[Source "ChessBase"]
[SourceQuality "1"]
[TimeControl "40/5400+30:1800+30"]

{[%evp 9,128,5,19,14,16,22,13,9,16,19,19,29,21,0,6,-16,0,0,0,0,0,0,0,0,0,0,0,0,0,0,0,0,0,0,0,0,0,0,0,0,0,-15,-3,-15,0,-17,-15,-15,-15,-15,0,0,0,-16,-14,-48,-33,-25,-15,-15,-15,-15,-15,-15,-15,-37,-22,-22,-22,-22,-22,-22,0,-22,0,-22,0,0,0,0,0,-244,-257,-256,-256,-244,-245,-220,-84,-533,-511,-1097,-1090,-1083,-1090,-1068,-1047,-1028,-1023,-1068,-1068,-927,-919,-919,-919,-2750,-1735,-1720,-1339,-29962,-12485,-6887,-272,-5297,-4384,-29972,-29975,-29978,-29978,-29982,-29983]} 1. e4 {[%emt 0:00:09]} c5 {[%emt 0:01:02]} 2. Nf3 {[%emt 0:00:04]} d6 {[%emt 0:00:10]} 3. Bb5+ {[%emt 0:00:29]} Bd7 {[%emt 0:00:07]} 4. c4 {[%emt 0:00:16]} Nc6 {[%emt 0:00:07]} 5. Nc3 {[%emt 0:00:46]} Nf6 {[%emt 0:00:24]} 6. d4 {[%emt 0:00:32] B52: Sicilian: Moscow Variation with 3...Bd7.} cxd4 {[%emt 0:00:05]} 7. Nxd4 {[%emt 0:00:03]} g6 {[%emt 0:00:06]} 8. h3 {[%emt 0:01:11] The position is equal.} Bg7 {[%emt 0:03:42][%cal Of6e4]} 9. Be3 {[%emt 0:00:12]} O-O {[%emt 0:03:56]} 10. O-O {[%emt 0:00:12]} Nxd4 {[%emt 0:07:04]} 11. Bxd4 {[%emt 0:00:18]} Be6 {[%emt 0:07:52]} 12. Qd3 {[%emt 0:07:48]} a6 {[%emt 0:16:20]} 13. Ba4 {[%emt 0:00:08]} Rc8 {[%emt 0:00:17]} 14. Nd5 {[%emt 0:02:16]} Nxd5 {[%emt 0:00:34]} 15. cxd5 {[%emt 0:01:04]} Bd7 {[%emt 0:02:16]} 16. Bxd7 {[%emt 0:01:32]} Qxd7 {[%emt 0:00:25]} 17. Bxg7 {[%emt 0:00:35]} Kxg7 {[%emt 0:00:07] [#]} 18. Rfc1 $146 {[%emt 0:01:52]} ({Predecessor:} 18. Rac1 Rxc1 19. Rxc1 Rc8 20. Rc4 f6 21. Qc3 Rxc4 22. Qxc4 Qd8 23. b4 Qd7 24. Qc2 {1-0 (34) Bacrot,E (2692)-Gelfand,B (2731) Ashdod 2015}) 18... f6 {[%emt 0:05:37]} 19. Qd1 {[%emt 0:01:14]} h5 {[%emt 0:01:33]} 20. b3 {[%emt 0:01:12]} Rxc1 {[%emt 0:02:15]} 21. Rxc1 $11 {[%emt 0:00:08][%mdl 4096] Endgame KQR-KQR} Rc8 {[%emt 0:00:03]} 22. Rc2 {[%emt 0:01:40]} Qd8 {[%emt 0:00:10]} 23. Qc1 {[%emt 0:00:18]} Rxc2 {[%emt 0:00:04]} 24. Qxc2 {[%emt 0:00:03] KQ-KQ} Qa5 {[%emt 0:00:18]} 25. Kf1 {[%emt 0:01:36]} Qb4 {[%emt 0:00:31]} 26. a4 {[%emt 0:18:39]} Qd4 {[%emt 0:00:29]} 27. Ke2 {[%emt 0:01:00]} h4 {[%emt 0:03:29]} 28. Qd3 {[%emt 0:08:51]} Qe5 {[%emt 0:00:59]} 29. Qe3 {[%emt 0:02:38]} Qb2+ {[%emt 0:12:52]} 30. Kf3 {[%emt 0:12:47]} Qe5 {[%emt 0:08:20]} 31. Ke2 {[%emt 0:01:41]} Kf7 {[%emt 0:00:23]} 32. g3 {[%emt 0:04:30]} hxg3 {[%emt 0:00:31]} 33. fxg3 {[%emt 0:00:06]} Qb2+ {[%emt 0:00:35]} 34. Kf3 {[%emt 0:09:31]} Qc2 {[%emt 0:02:08]} 35. h4 {[%emt 0:03:19] Prevents g5.} b5 {[%emt 0:06:46]} 36. axb5 {[%emt 0:09:07]} axb5 {[%emt 0:00:04]} 37. b4 {[%emt 0:00:17]} Qb1 {[%emt 0:05:35]} 38. Qd2 {[%emt 0:01:09]} Kg7 {[%emt 0:01:02]} 39. Ke3 {[%emt 0:01:35]} Kh7 {[%emt 0:05:52]} 40. Kf3 {[%emt 0:00:00]} Kg7 {[%emt 0:00:00]} 41. Ke3 {[%emt 0:01:17]} Kh6 {[%emt 0:07:06]} 42. Kf3+ {[%emt 0:26:54]} g5 {[%emt 0:00:10]} 43. hxg5+ {[%emt 0:00:21]} fxg5 {[%emt 0:00:04]} 44. Qc3 {[%emt 0:00:09] Threatens to win with Qh8+.} Kg6 {[%emt 0:03:33]} 45. Qc6 $2 {[%emt 0:01:39]} (45. Qd2 $11) 45... Qd3+ $19 {[%emt 0:07:10]} ({Don't play} 45... Qxb4 46. Qe8+ Kh6 47. Qf8+ (47. Qxe7 Qc3+ 48. Kg2 Qc2+ 49. Kg1 Qd1+ 50. Kf2 Qd2+ 51. Kg1 Qd1+ 52. Kh2 Qe2+ 53. Kh3 Qh5+ 54. Kg2 Qe2+ 55. Kh3 Qh5+ 56. Kg2 Qe2+ 57. Kh3 $11) 47... Kh7 48. Qxe7+ Kg6 49. Qe8+ Kf6 50. Qf8+ Kg6 51. Qf5+ Kg7 52. Qxg5+ Kf8 53. Qf5+ Kg8 54. Qg5+ Kh7 55. Qe7+ Kg6 56. Qe8+ Kh6 57. Qe6+ Kg7 58. Qe7+ Kg6 59. Qe8+ Kh6 60. Qf8+ Kg6 61. Qf5+ Kg7 62. Qd7+ Kh6 63. Qe6+ Kg7 64. Qe7+ Kg6 $16) 46. Kf2 {[%emt 0:00:01] [#]} Kf6 $1 {[%emt 0:00:14]} ({Worse is} 46... Qxe4 47. Qxb5 Kf6 48. Qe8 $17) 47. Qe8 {[%emt 0:02:09]} Qxe4 {[%emt 0:01:47]} 48. Qf8+ {[%emt 0:01:19]} Kg6 {[%emt 0:00:04]} 49. Qg8+ $2 {[%emt 0:01:36][%mdl 8192] [#] White does not recover from this.} (49. Qe8+ $17 Kf5 50. Qxb5) 49... Kh5 $1 {[%emt 0:02:33]} 50. Qe8+ {[%emt 0:00:07]} (50. Qc8 $142 Qxd5 51. Qh3+ Kg6 52. Qh8) 50... Kg4 {[%emt 0:00:34] ...Qf3+ is the strong threat.} 51. Qxb5 {[%emt 0:00:06]} Qf3+ {[%emt 0:02:21]} 52. Ke1 {[%emt 0:00:03]} Qxg3+ {[%emt 0:01:45]} 53. Kd2 {[%emt 0:00:16]} Qf4+ {[%emt 0:00:39]} 54. Kc3 {[%emt 0:00:22]} Qc1+ {[%emt 0:03:07]} 55. Kb3 {[%emt 0:00:22]} Qd1+ {[%emt 0:00:05]} 56. Kc3 {[%emt 0:00:48]} Kf3 {[%emt 0:01:13] aiming for ...g4.} 57. Qe8 {[%emt 0:04:46]} Qc1+ {[%emt 0:01:09]} 58. Kb3 {[%emt 0:00:19]} g4 {[%emt 0:00:14][%cal Bg5g4,Bg4g3][%mdl 32] Strongly threatening ...Qd1+.} 59. Qh5 {[%emt 0:00:34]} Qd1+ {[%emt 0:01:02]} 60. Ka3 {[%emt 0:00:31]} Qa1+ {[%emt 0:01:16]} 61. Kb3 {[%emt 0:00:01]} Qe5 {[%emt 0:00:44] Inhibits Qf5+.} 62. Qh1+ {[%emt 0:00:06]} Kf2 {[%emt 0:00:14] Black mates.} 63. Qh4+ {[%emt 0:01:03]} g3 {[%emt 0:00:13]} 64. b5 {[%emt 0:00:32]} Qf6 {[%emt 0:00:52] Weighted Error Value: White=0.60/Black=0.09 (flawless)} 0-1

[Event "2nd China Preliminary Asian Games 2022"]
[Site "HangZhou"]
[Date "2022.04.23"]
[Round "9.2"]
[White "Bu, Xiangzhi"]
[Black "Ma, Qun"]
[Result "1/2-1/2"]
[ECO "D41"]
[WhiteElo "2700"]
[BlackElo "2645"]
[Annotator "TA"]
[PlyCount "61"]
[EventDate "2022.04.13"]
[EventType "tourn"]
[EventCountry "CHN"]
[SourceTitle "playchess.com"]
[Source "ChessBase"]
[SourceQuality "1"]
[TimeControl "40/5400+30:1800+30"]

{[%evp 19,61,19,24,8,5,0,0,0,0,0,0,6,15,0,0,0,0,0,0,-32,-17,-30,0,0,-10,-28,-29,-34,-40,-104,-25,-48,0,0,0,0,7,8,6,9,9,17,12,8]} 1. Nf3 {[%emt 0:00:35]} d5 {[%emt 0:00:14]} 2. d4 {[%emt 0:00:12]} Nf6 {[%emt 0:00:10]} 3. c4 {[%emt 0:00:06]} e6 {[%emt 0:00:11]} 4. Nc3 {[%emt 0:01:01]} c5 {[%emt 0:00:33]} 5. cxd5 {[%emt 0:01:13]} Nxd5 {[%emt 0:00:10]} 6. e4 {[%emt 0:00:24]} Nxc3 {[%emt 0:00:08]} 7. bxc3 {[%emt 0:00:03]} cxd4 {[%emt 0:00:09]} 8. cxd4 {[%emt 0:00:03]} Bb4+ {[%emt 0:00:10]} 9. Bd2 {[%emt 0:00:04]} Bxd2+ {[%emt 0:00:10]} 10. Qxd2 {[%emt 0:00:03]} O-O {[%emt 0:00:09]} 11. Rd1 {[%emt 0:00:08] D41: Queen's Gambit Declined: Semi-Tarrasch with 5 cxd5.} b6 {[%emt 0:00:06]} 12. h4 {[%emt 0:00:46]} Bb7 {[%emt 0:00:07]} 13. Bd3 {[%emt 0:00:05]} Nd7 {[%emt 0:00:05]} 14. O-O {[%emt 0:00:44]} Rc8 {[%emt 0:01:28]} 15. Rfe1 {[%emt 0:00:22] [#]} Re8 $146 {[%emt 0:06:13]} ({Predecessor:} 15... Nf6 16. a4 h6 17. a5 bxa5 18. Ra1 Ba8 19. Rxa5 Rc7 20. Ra6 Re8 21. Qa5 Qb8 {½-½ (50) Hakobyan,A (2612)-Erigaisi,A (2675) Fagernes 2022}) 16. Bb1 {[%emt 0:00:48]} Qc7 {[%emt 0:13:57]} 17. Qe3 {[%emt 0:19:15]} Nf6 {[%emt 0:09:45]} 18. Rc1 {[%emt 0:04:22]} Qe7 {[%emt 0:03:09]} 19. Rxc8 {[%emt 0:12:59]} Rxc8 {[%emt 0:01:44]} 20. Qd2 {[%emt 0:08:57]} Nd7 {[%emt 0:06:10]} 21. Qb2 {[%emt 0:06:46]} h6 {[%emt 0:05:16]} 22. Qb3 {[%emt 0:03:23]} Nf6 {[%emt 0:03:32]} 23. Nd2 {[%emt 0:10:59]} Qd6 {[%emt 0:09:32]} 24. Qd3 {[%emt 0:04:21] [#]} (24. Nf3 $15 Qc7 25. Qa3) 24... Qc6 {[%emt 0:03:34]} (24... Qb4 $1 $17 25. e5 {[#]} Rc3 $1) 25. f3 {[%emt 0:02:49]} Qc3 {[%emt 0:01:17]} (25... Qa4 $15) 26. Qxc3 $11 {[%emt 0:00:14] The position is equal.} Rxc3 {[%emt 0:00:07]} 27. Kf2 {[%emt 0:00:03]} Kf8 {[%emt 0:00:06]} 28. Re3 {[%emt 0:00:14]} Rxe3 {[%emt 0:02:19]} 29. Kxe3 {[%emt 0:00:03]} g5 {[%emt 0:00:30]} 30. hxg5 {[%emt 0:00:04]} hxg5 {[%emt 0:00:05]} 31. Bd3 {[%emt 0:01:15] Weighted Error Value: White=0.09 (flawless) /Black=0.12 (very precise)} 1/2-1/2